Cogmind - Beta 16.1 @@@ ROGUE MODE // 2026.04.06 @ 17:14:28 Player: Lyft Result: Destroyed by U7-PHF(x) with Makeshift Spear Performance ------------- Evolutions (0) 0 Regions Visited (5) 1000 Robots Destroyed (51) 255 Value Destroyed (1054) 1054 Prototype IDs (9) 180 Alien Tech Used (0) 0 Bonus (1118) 1118 TOTAL SCORE: 3607 Bonus ------- Follower Combat Kills 318 Registered with UFD 300 Met Optimus in HQ 500 Cogmind --------- Core Integrity 0/250 Matter 267/300 Energy 235/240 System Corruption 0% Temperature Cool (32) Movement Walking (130) Location -8/Scraptown Parts ------- > --- POWER (1) -------- Nuclear Core > --- PROPULSION (2) --- Cargo Legs > --- UTILITY (2+2) ---- Large Storage Unit Improved Light Armor Plating Hacking Suite (+) Hacking Suite (+) > --- WEAPON (2) ------- Slug Cannon LU-1G1's Laser Shovel > --- INVENTORY (15) --- Deep Structural Scanner Hypervelocity Gauss Rifle Improved Datajack Plasma Cutter Peak State ------------ > --- POWER ------------ Improved Ion Engine > --- PROPULSION ------- Cargo Legs > --- UTILITY ---------- Large Storage Unit Improved Light Armor Plating Hacking Suite Hacking Suite > --- WEAPON ----------- Hypervelocity Gauss Rifle Slug Cannon > --- INVENTORY -------- Improved Carbon-fiber Leg Energy Filter Phase Shifter Reactive Plating Force Field Hacking Suite A0-MCA's Component Scanner System Restoration Module High-powered Shock Rifle Pulse Rifle Plasma Rifle Thermic Laser Heavy Plasma Cannon Improved Datajack Botcube [Rating: 44] Favorites ----------- Power Improved Ion Engine Engine Improved Ion Engine Power Core Nuclear Core Propulsion Cargo Legs Treads Light Treads Leg Cargo Legs Wheel Wheel Utility Hacking Suite Device Seismic Detector Storage Large Storage Unit Hackware Hacking Suite Protection Improved Light Armor Plating Weapon Improved EM Shotgun Energy Gun Improved EM Shotgun Energy Cannon Subdweller Beam Cannon Ballistic Gun Hypervelocity Gauss Rifle Ballistic Cannon Slug Cannon Launcher Grenade Launcher Special Weapon Mining Laser Special Melee Weapon Datajack Build | -11 -10 -10 -10 -8 -8 ------- Run | Yrd Mat Min Sub Rec Scr Slots Evolved . | . . . . . . Power . | . . . . . . Propulsion . | . . . . . . Utility . | . . . . . . Weapon . | . . . . . . Parts Attached 55 | 3 11 3 18 5 15 Power 6 | . . . 4 1 1 Engine 5 | . . . 4 1 . Core 1 | . . . . . 1 Reactor . | . . . . . . Propulsion 7 | 2 2 1 2 . . Treads 3 | 1 1 . 1 . . Leg 1 | . . . 1 . . Wheel 3 | 1 1 1 . . . Hover . | . . . . . . Flight . | . . . . . . Utility 12 | 1 1 . 4 1 5 Device 3 | 1 . . 1 . 1 Storage 2 | . 1 . . . 1 Processor . | . . . . . . Hackware 2 | . . . 2 . . Protection 5 | . . . 1 1 3 Artifact . | . . . . . . Weapon 30 | . 8 2 8 3 9 Energy Gun 11 | . 5 1 1 1 3 Energy Cannon 2 | . 1 . 1 . . Ballistic Gun 5 | . 1 . 2 1 1 Ballistic Cannon 1 | . . . 1 . . Launcher 2 | . . 1 . . 1 Special Weapon 8 | . 1 . 2 1 4 Impact Weapon . | . . . . . . Slashing Weapon . | . . . . . . Piercing Weapon . | . . . . . . Special Melee Weapon 1 | . . . 1 . . Unidentified Prototypes 4 | . 1 . 2 . 1 Parts Lost 1 | . . . 1 . . Power . | . . . . . . Propulsion . | . . . . . . Utility . | . . . . . . Weapon 1 | . . . 1 . . Highest Loss Streak 1 | . . . 1 . . To Critical Strikes . | . . . . . . Average Backups 9 | 5 8 14 6 12 10 Power . | 1 1 2 1 . . Propulsion 1 | 2 1 1 . 3 1 Utility 3 | . 2 5 2 4 4 Weapon 2 | 1 3 5 2 3 2 Tool/Special . | . . . . . . Unused Backups 62 | 7 6 1 5 2 41 Power 7 | 1 3 . 2 . 1 Propulsion 15 | 3 1 . 1 1 9 Utility 28 | 1 . 1 2 . 24 Weapon 10 | 2 2 . . 1 5 Tool/Special 2 | . . . . . 2 Average Slot Usage (%) 85 | . 99 100 80 88 86 Engine 11 | . 14 14 11 11 10 Treads 2 | . 14 14 1 . . Leg 9 | . . . 9 11 11 Wheel 2 | . 14 14 1 . . Device 2 | . 14 14 2 4 . Storage 8 | . 14 14 2 11 11 Hackware 18 | . . . 18 22 22 Protection 7 | . . . 8 6 9 Energy Gun 7 | . 20 28 6 7 3 Energy Cannon 1 | . 2 . 1 3 . Ballistic Gun 7 | . 4 . 6 7 10 Ballistic Cannon 3 | . . . 1 . 7 Special Weapon 2 | . 1 . 6 3 . Peak Build Rating 44 | 7 13 13 35 36 44 Average Rating 32 | 6 10 12 30 33 39 On Entrance 18 | 6 7 13 13 33 36 Avg Prop Armor Cover (%) 11 | 13 11 11 11 . . Naked Turns . | . . . . . . Heaviest Build 43 | 14 32 32 35 37 43 Greatest Support 55 | 20 16 10 55 55 55 Greatest Overweight (x) 3 | . 3 3 3 . . Average Overweight (x) . | . 1 3 . . . Largest Inventory Capacity 15 | 8 15 15 15 15 15 Average Capacity 11 | 8 10 15 7 15 15 Most Carried 15 | 8 15 15 15 15 15 Average Carried 10 | 5 8 14 6 14 11 Final Capacity 15 | 8 15 15 15 15 15 Final Carried 15 | 5 14 15 15 15 4 Class Distribution -------------------- 84% | Hacker-Mutant 15% | Mutant Dominant Class ---------------- Mutant | -10/Materials Mutant | -10/Mines Hacker-Mutant | -10/Subcaves Hacker-Mutant | -8/Recycling Hacker-Mutant | -8/Scraptown Resources | -11 -10 -10 -10 -8 -8 ----------- Run | Yrd Mat Min Sub Rec Scr Matter Collected 1276 | 263 138 30 471 54 320 Remotely . | . . . . . . Salvage Created 1692 | 195 824 202 419 52 . Parts 103 | 18 37 16 28 4 . Haulers Intercepted 2 | . 2 . . . . Recyclers Shooed 1 | . 1 . . . . Parts Field Recycled . | . . . . . . Retrieved Matter . | . . . . . . Parts Self-Destructed 9 | . . . 9 . . Prevented . | . . . . . . Parts Restored . | . . . . . . Kills | -11 -10 -10 -10 -8 -8 ------- Run | Yrd Mat Min Sub Rec Scr Combat Hostiles Destroyed 31 | . 12 6 12 1 . Guns 22 | . 7 6 8 1 . Cannons 2 | . 1 . 1 . . AOE 5 | . 4 . 1 . . Classes Destroyed 11 | 2 6 1 1 1 . Worker 3 | . 1 2 . . . Builder 1 | . . 1 . . . Tunneler 7 | 5 1 1 . . . Hauler 2 | . 2 . . . . Recycler 2 | 1 1 . . . . Operator 2 | . 2 . . . . Watcher 3 | . 3 . . . . Swarmer 11 | . 2 6 3 . . Grunt 10 | . 10 . . . . Sentry 1 | . . . . 1 . Subdweller 9 | . . . 9 . . Best Kill Streak 7 | 3 7 4 3 1 . Combat Bots Only 4 | . 4 3 3 1 . Max Kills in Single Turn 2 | 1 2 2 1 1 . Gunslinging . | . . . . . . Exploded 1 | . 1 . 1 . . Melee . | . . . . . . Uniques/NPCs Destroyed . | . . . . . . Combat | -11 -10 -10 -10 -8 -8 -------- Run | Yrd Mat Min Sub Rec Scr Hostile Shots Fired 171 | . 42 12 99 4 14 Missed 53 | . 13 3 30 1 6 Hits 118 | . 29 9 69 3 8 Melee 8 | . . . . . 8 Projectile 110 | . 29 9 69 3 . AOE 4 | . . . 4 . . Damage Taken 2102 | . 385 69 1387 41 220 Core 273 | . 63 6 107 12 85 Absorbed by Shields . | . . . . . . Core Remaining (%) 100 | 100 . . . . . Volleys Fired 188 | 11 42 8 116 2 9 Largest 2 | 2 2 2 2 2 2 Hottest 128 | 60 100 90 128 80 100 Shots Fired 272 | 22 77 16 141 4 12 Gun 152 | 22 64 16 45 4 1 Cannon 37 | . 6 . 28 . 3 Launcher 3 | . . . 3 . . Special 80 | . 7 . 65 . 8 Kinetic 55 | 11 6 . 32 2 4 Thermal 101 | 11 7 . 79 . 4 Explosive 3 | . . . 3 . . Electromagnetic 109 | . 64 16 27 2 . Robot Hit Streak 13 | 4 8 4 13 2 9 Robot Miss Streak 6 | 2 6 4 2 2 1 Penetration Max . | . . . . . . Secondary Targets 4 | . 1 2 1 . . Max Gunslinging Chain 1 | . 1 1 1 . . Shots Hit Robots 122 | 12 47 10 42 3 8 Core Hits 74 | 7 34 10 20 2 1 Critical Kills . | . . . . . . Critical Parts Destroyed . | . . . . . . Critical Strikes 1 | . . . 1 . . Destroy 1 | . . . 1 . . Melee Attacks 2 | . . . 2 . . Impact . | . . . . . . Slashing . | . . . . . . Piercing . | . . . . . . Sneak Attacks 1 | . . . 1 . . Combat Hostiles 1 | . . . 1 . . Follow-up Attacks . | . . . . . . Damage Inflicted 2328 | 133 1126 145 812 38 74 Guns 1588 | 133 721 145 551 38 . Cannons 317 | . 148 . 110 . 59 Explosions 384 | . 257 . 127 . . Melee . | . . . . . . Ramming . | . . . . . . Kinetic 413 | 33 40 . 262 19 59 Thermal 396 | 100 257 . 24 . 15 Explosive 127 | . . . 127 . . Electromagnetic 1392 | . 829 145 399 19 . Impact . | . . . . . . Slashing . | . . . . . . Piercing . | . . . . . . Highest Corruption . | . . . . . . Average Corruption . | . . . . . . Corruption Purged . | . . . . . . Corruption Blocked . | . . . . . . Overload Shots . | . . . . . . Overflow Damage . | . . . . . . Projectiles . | . . . . . . Explosions . | . . . . . . Melee . | . . . . . . Knockbacks . | . . . . . . Impact . | . . . . . . Kinetic . | . . . . . . Secondary . | . . . . . . Self-Inflicted Damage 45 | . 45 . . . . Shots 2 | . 2 . . . . Rammed . | . . . . . . Targets Rammed . | . . . . . . Kicked . | . . . . . . Crushed . | . . . . . . Highest Temperature 162 | 20 162 90 8 45 32 Average Temperature 39 | 20 44 33 7 27 16 Received Heat Transfer 474 | . 165 . 300 9 . Siege Activations . | . . . . . . Martial Activations . | . . . . . . Shielding Activations . | . . . . . . Robots Disrupted . | . . . . . . Combat Hostiles . | . . . . . . Robots Corrupted 3 | . 1 . 2 . . Combat Hostiles 2 | . . . 2 . . Parts Fried 9 | . 3 . 6 . . Impact Corruptions . | . . . . . . Robots Melted . | . . . . . . Combat Hostiles . | . . . . . . Parts Melted 2 | 1 . . 1 . . Heat Transferred 625 | 225 350 . 50 . . Parts Sabotaged . | . . . . . . Parts Stolen . | . . . . . . Parts Stripped . | . . . . . . Power Chain Reactions 5 | . 5 . . . . Alert | -11 -10 -10 -10 -8 -8 ------- Run | Yrd Mat Min Sub Rec Scr Maximum Alert Level 1 | . 1 . . . . Low Security (%) 98 | 100 93 100 . 100 . Level 1 1 | . 6 . . . . Level 2 . | . . . . . . Level 3 . | . . . . . . Level 4 . | . . . . . . Level 5 . | . . . . . . High Security . | . . . . . . Max Security . | . . . . . . Peak Influence 216 | 10 216 149 . 156 . Initial 124 | . 3 74 . 124 . Average 53 | 2 110 46 . 29 . Influence Increases 1296 | 30 490 187 330 259 . Destroy 0b10 Robot/C 460 | . 240 120 60 40 . Destroy 0b10 Robot/NC 100 | 30 50 20 . . . Destroy Leader 70 | . 50 20 . . . Allied During Kill 13 | . . 12 . 1 . Successful Hack 59 | . 12 . . 47 . Select Force Hacks 180 | . 30 . . 150 . Disable Machine 30 | . 15 15 . . . Destroy Structure 39 | . 18 . . 21 . Partial Spotted 15 | . 15 . . . . Lose Combat Pursuer 330 | . 60 . 270 . . Influence Decreases 1296 | 25 303 379 69 520 . Entered New Map 257 | . 2 118 . 137 . Time Decay 1019 | 25 301 241 69 383 . Lost Ally 20 | . . 20 . . . Squads Dispatched 3 | . 3 . . . . Investigation 2 | . 2 . . . . Extermination . | . . . . . . Reinforcement 1 | . 1 . . . . Assault . | . . . . . . Garrison . | . . . . . . Intercept . | . . . . . . Searches Triggered . | . . . . . . Construction Impeded . | . . . . . . Haulers Reinforced . | . . . . . . Active Scanning Responses . | . . . . . . Cargo Convoy Interrupts . | . . . . . . Stealth | -11 -10 -10 -10 -8 -8 --------- Run | Yrd Mat Min Sub Rec Scr Distress Signals . | . . . . . . Communications Jammed . | . . . . . . Distress Signals . | . . . . . . Times Spotted 66 | . 24 5 34 2 1 Peak Tracking Total 6 | . 4 3 6 1 1 Tactical Retreats 7 | . 2 . 5 . . Traps | -11 -10 -10 -10 -8 -8 ------- Run | Yrd Mat Min Sub Rec Scr Traps Triggered 3 | . 1 . 2 . . Indirectly . | . . . . . . Trap Hack Attempts . | . . . . . . Triggered . | . . . . . . Disarmed . | . . . . . . Reprogrammed . | . . . . . . Reused . | . . . . . . Traps Extracted . | . . . . . . Installed . | . . . . . . Triggered . | . . . . . . Machines | -11 -10 -10 -10 -8 -8 ---------- Run | Yrd Mat Min Sub Rec Scr Machines Disabled 7 | . 4 1 1 . 1 Max in Single Turn 3 | . 3 1 1 . 1 Machines Repaired . | . . . . . . Machines Dismantled . | . . . . . . Machines Sabotaged . | . . . . . . Overloaded Fab Kills . | . . . . . . Hacking | -11 -10 -10 -10 -8 -8 --------- Run | Yrd Mat Min Sub Rec Scr Machines Accessed 30 | . 8 . . 13 9 Terminals 13 | . 7 . . 6 . Fabricators . | . . . . . . Repair Stations . | . . . . . . Recycling Units 6 | . 1 . . 5 . Scanalyzers . | . . . . . . Garrison Access . | . . . . . . Total Hacks 152 | . 22 . . 56 74 Successful 134 | . 12 . . 48 74 Failed 17 | . 9 . . 8 . Catastrophic 1 | . 1 . . . . Database Lockouts 1 | . 1 . . . . Manual 24 | . 14 . . 10 . Terminals 37 | . 21 . . 16 . Fabricators . | . . . . . . Repair Stations . | . . . . . . Recycling Units 17 | . 1 . . 16 . Scanalyzers . | . . . . . . Garrison Access . | . . . . . . Terminal Hacks 112 | . 7 . . 31 74 Record 93 | . . . . 24 69 Part Schematic 2 | . . . . 2 . Robot Analysis 7 | . 2 . . . 5 Prototype ID Bank 3 | . 1 . . 2 . Terminal Index 2 | . 1 . . 1 . Recycling Unit Index 1 | . . . . 1 . Locate Traps 1 | . 1 . . . . Recall Investigation 1 | . 1 . . . . Hauler Manifests 1 | . 1 . . . . Registered Components 1 | . . . . 1 . Fabricator Hacks . | . . . . . . Repair Station Hacks . | . . . . . . Recycling Unit Hacks 8 | . . . . 8 . Report Inventory 5 | . . . . 5 . Retrieve Components 3 | . . . . 3 . Scanalyzer . | . . . . . . Garrison Access Hacks . | . . . . . . Unauthorized Hacks 14 | . 5 . . 9 . Terminals 7 | . 4 . . 3 . Assimilate 1 | . 1 . . . . Botnet 4 | . 2 . . 2 . Operators 2 | . 1 . . 1 . Fabricators . | . . . . . . Repair Stations . | . . . . . . Recycling Units 7 | . 1 . . 6 . Recyclers 1 | . . . . 1 . Tunnel 6 | . 1 . . 5 . Scanalyzers . | . . . . . . Garrison Access . | . . . . . . Data Cores Recovered . | . . . . . . Used . | . . . . . . Hacking Detections 10 | . 5 . . 5 . Full Trace Events . | . . . . . . Feedback Events . | . . . . . . Feedback Blocked . | . . . . . . Robot Schematics Acquired . | . . . . . . Robots Built . | . . . . . . Authchips . | . . . . . . Time . | . . . . . . Total Robot Build Rating . | . . . . . . Part Schematics Acquired 2 | . . . . 2 . Parts Built . | . . . . . . Authchips . | . . . . . . Time . | . . . . . . Total Part Build Rating . | . . . . . . Part Studies Acquired . | . . . . . . Parts Repaired . | . . . . . . Time . | . . . . . . Parts Recycled . | . . . . . . Recycled Matter . | . . . . . . Retrieved Matter . | . . . . . . Retrieved Components 10 | . . . . 10 . Parts Scanalyzed . | . . . . . . Part Schematics Acquired . | . . . . . . Parts Damaged . | . . . . . . Bothacking | -11 -10 -10 -10 -8 -8 ------------ Run | Yrd Mat Min Sub Rec Scr Used RIF Installer . | . . . . . . Robots Hacked 1 | . . . 1 . . Non-combat . | . . . . . . Combat 1 | . . . 1 . . Robot Hacks Applied 1 | . . . 1 . . parse_system 1 | . . . 1 . . Relay Couplers Released . | . . . . . . Fabnet Peak Effective % . | . . . . . . Robots Rewired . | . . . . . . Allies Hacked . | . . . . . . Hacks Repelled . | . . . . . . Allies | -11 -10 -10 -10 -8 -8 -------- Run | Yrd Mat Min Sub Rec Scr Total Allies 7 | . . 5 1 . 1 Largest Group 5 | . . 5 4 1 1 Highest-Rated Group 78 | . . 78 71 19 66 Highest-Rated Ally 66 | . . 31 31 19 66 Total Orders 2 | . . . . . 2 STAY 1 | . . . . . 1 FOLLOW 1 | . . . . . 1 Ally Attacks 54 | . . . 42 2 10 Total Damage 1244 | . . . 639 147 458 Kills 15 | . . . 6 2 7 Allies Corrupted . | . . . . . . Allies Melted . | . . . . . . Intel | -11 -10 -10 -10 -8 -8 ------- Run | Yrd Mat Min Sub Rec Scr Active Infowar (turns) 3051 | 83 971 1009 988 . . Seismic 3051 | 83 971 1009 988 . . Robot Analysis Total 7 | . 2 . . . 5 Derelict Logs Recovered 7 | . . 2 2 . 3 Drone Launches . | . . . . . . Drone Recoveries . | . . . . . . Exploration | -11 -10 -10 -10 -8 -8 ------------- Run | Yrd Mat Min Sub Rec Scr Turns Passed 19179 | 113 971 1009 6857 1756 8473 Spaces Moved 12219 | 56 661 514 4051 1317 5620 Core . | . . . . . . Treads . | . . . . . . Legs 10733 | 13 . . 3783 1317 5620 Wheels 1486 | 43 661 514 268 . . Hover . | . . . . . . Flight . | . . . . . . Fastest Speed 100 | 100 100 125 110 130 130 Average Speed 128 | 104 113 125 129 130 130 Slowest Speed 130 | 120 125 125 130 130 130 Overloaded Moves . | . . . . . . Propulsion Burnouts . | . . . . . . Robots Hopped . | . . . . . . Potential Cave-ins 5 | . . . . . 5 Cave-ins Triggered . | . . . . . . Exploration Rate (%) 77 | 3 92 88 90 99 94 Regions Visited 5 Branch Regions 4 Pre-discovered Areas 7 | . 1 . . 5 1 Known Exits Taken . | . . . . . . Unknown Exits Taken 5 | 1 1 1 1 1 . Scrap Searched 10 | . . 1 3 . 6 Spaces Dug 37 | . 5 . 6 . 26 Terrain Destroyed 55 | . 16 . 24 . 15 Melee . | . . . . . . Projectile 17 | . 5 . 12 . . AOE 23 | . 11 . 12 . . Terrain Rammed . | . . . . . . Walls Destroyed . | . . . . . . Machines Disabled . | . . . . . . Actions | -11 -10 -10 -10 -8 -8 --------- Run | Yrd Mat Min Sub Rec Scr Total 15319 | 89 795 864 5395 1354 6822 Wait 2475 | 14 44 335 1129 22 931 Move 12214 | 55 660 513 4050 1316 5620 Hop . | . . . . . . Pick Up 158 | 3 21 3 18 2 111 Fast Attach 12 | . 3 . 5 1 3 Attach 21 | 3 3 . 8 . 7 Detach 5 | . . . 3 . 2 Swap 44 | . 6 3 16 5 14 Drop 173 | 3 16 2 28 4 120 Fire 188 | 11 42 8 116 2 9 Melee 2 | . . . 2 . . Ram . | . . . . . . Kick . | . . . . . . Crush . | . . . . . . Escape Stasis . | . . . . . . Rewire 6 | . . . . 1 5 Trap . | . . . . . . Miscellaneous 21 | . . . 20 1 . Route ------- -11/Scrapyard -10/Materials (discovered 6 exits: [*Mat x3] / [*Min x2] / [*Sub]) -10/Mines (discovered 3 exits: [*Mat x2] / [*Sub]) -10/Subcaves (discovered 3 exits: [*Mat x2] / *Rec) -8/Recycling (discovered 2 exits: [*Fac] / *Scr) -8/Scraptown (discovered 2 exits: [*Fac x2]) History --------- Turn | Location | Event 5 | -11/Scrapyard | Discovered new exit (range 2) 114 | -11/Scrapyard | Entered Materials 115 | -10/Materials | Met a group of wandering Federalists 208 | -10/Materials | Discovered new exit (range 4) 225 | -10/Materials | Discovered new exit (range 3) 328 | -10/Materials | Build established: Mutant 391 | -10/Materials | Discovered new exit (range 5) 408 | -10/Materials | Discovered new exit (range 16) 525 | -10/Materials | Central database locked down 534 | -10/Materials | Discovered new exit (range 4) 713 | -10/Materials | Discovered new exit (range 13) 1085 | -10/Materials | Entered Mines 1174 | -10/Mines | Met a Derelict bent on vengeance 1286 | -10/Mines | Learned 2 Materials zone layouts 1304 | -10/Mines | Assisted by bots powering up and referring to "LRC-V3" 1412 | -10/Mines | Found DCF Scrap (14 items) 1446 | -10/Mines | Discovered new exit (range 9) 1450 | -10/Mines | Assembled infested the area 1455 | -10/Mines | Assisted by a Guerilla fighting off Assembled 1819 | -10/Mines | Learned Materials terminal intel 1894 | -10/Mines | Discovered new exit (range 8) 1931 | -10/Mines | Discovered new exit (range 6) 2094 | -10/Mines | Entered Subcaves 2094 | -10/Subcaves | Accompanied by 4 allies 2099 | -10/Subcaves | Led the pair of lost Derelicts to an unsafe place 2685 | -10/Subcaves | Learned Materials emergency access door positions 2787 | -10/Subcaves | Discovered new exit (range 14) 2854 | -10/Subcaves | A Subdweller sparked back to life 2854 | -10/Subcaves | A Subdweller sparked back to life 2854 | -10/Subcaves | A Subdweller sparked back to life 2871 | -10/Subcaves | Found Prototype Leg 2871 | -10/Subcaves | Identified Cargo Legs 2873 | -10/Subcaves | Attached Cargo Legs, gained temporary slots: Utility x2 3093 | -10/Subcaves | Lost 3 allies 3362 | -10/Subcaves | Build established: Hacker-Mutant 3752 | -10/Subcaves | Core integrity fell below 50% 4101 | -10/Subcaves | Shifting Twisted Machinery released Slug Cannon 4108 | -10/Subcaves | Shifting Twisted Machinery released Sub. Laser 4721 | -10/Subcaves | Visited triangular shrine 4773 | -10/Subcaves | Found Prototype Device 5006 | -10/Subcaves | Discovered new exit (range 5) 5029 | -10/Subcaves | Learned 2 Materials zone layouts 5104 | -10/Subcaves | Discovered new exit (range 16) 8425 | -10/Subcaves | Identified V3-11A's Pendant 8435 | -10/Subcaves | Befriended Subdweller 8951 | -10/Subcaves | Entered Recycling 8951 | -8/Recycling | Accompanied by 1 ally 8952 | -8/Recycling | Met a Zionite searching for Scraptown 9366 | -8/Recycling | Discovered new exit (range 15) 10023 | -8/Recycling | Scanned before Scraplab entrance 10705 | -8/Recycling | Discovered new exit (range 2) 10707 | -8/Recycling | Entered Scraptown 10779 | -8/Scraptown | Delivered V3-11A's Pendant to T0-NE2 in exchange for information 11058 | -8/Scraptown | Visited Spacefarers 11186 | -8/Scraptown | Visited Red Mages 11299 | -8/Scraptown | Heard Great Nut preacher, LISTEN AND RECITE! 11701 | -8/Scraptown | Discovered new exit (range 5) 11738 | -8/Scraptown | Scanned Subdweller tech in exchange for log data 11744 | -8/Scraptown | Learned location of 1 exit from Research 11745 | -8/Scraptown | Learned location of 2 exits from Lower Caves 11792 | -8/Scraptown | Visited Junk Repository 11882 | -8/Scraptown | Visited Cave Peace 11941 | -8/Scraptown | Visited The Evicted 12031 | -8/Scraptown | Visited TADAMA 12129 | -8/Scraptown | Visited Cyclists 12657 | -8/Scraptown | Visited UFD Registry 12657 | -8/Scraptown | Registered with UFD as "Scrapmod" 12685 | -8/Scraptown | Entered Cyclist Reading Room 12783 | -8/Scraptown | Visited Cartography Club 12839 | -8/Scraptown | Visited LU-1G1's Boring Crew 12910 | -8/Scraptown | Visited Botcube Research 12925 | -8/Scraptown | Found Botcube 12983 | -8/Scraptown | Discovered new exit (range 5) 13094 | -8/Scraptown | Visited Science Testing Area 13139 | -8/Scraptown | Visited A0-MCA Data Center 13263 | -8/Scraptown | Given a B rating by A0-MCA 13268 | -8/Scraptown | Found A0-MCA's Component Scanner 13292 | -8/Scraptown | Visited Analyses Database 13426 | -8/Scraptown | Visited DA-N13 Charitable Foundation 13443 | -8/Scraptown | Found DCF Scrap (32 items) 13499 | -8/Scraptown | Visited Junk Repository 13624 | -8/Scraptown | Delivered Scrap Shield to a Scientist 14880 | -8/Scraptown | Found Scrap Suit 14883 | -8/Scraptown | Found Scrap Suit 17218 | -8/Scraptown | Guru changed UFD alias to "Shortdisc" 18047 | -8/Scraptown | Botcube activated 18069 | -8/Scraptown | Botcube completed mutation into treaded form, armed with 1 gun, 1 cannon. 18403 | -8/Scraptown | Attached CPS modules to *Hagnk. 18418 | -8/Scraptown | Attached CPS modules to *Hagnk. 18421 | -8/Scraptown | Attached CPS modules to *Hagnk. 18423 | -8/Scraptown | Attached CPS modules to *Hagnk. 18714 | -8/Scraptown | Met Optimus 18714 | -8/Scraptown | Accepted into 0bPrime 19114 | -8/Scraptown | Civil war broke out across Scraptown 19120 | -8/Scraptown | Found Prototype Special Weapon 19121 | -8/Scraptown | Identified LU-1G1's Laser Shovel 19147 | -8/Scraptown | Found Deep Structural Scanner 19171 | -8/Scraptown | Core integrity fell below 20% 19180 | -8/Scraptown | Destroyed by U7-PHF(x) with Makeshift Spear Last Messages --------------- Earth. 19133_ LU-1G1's Laser Shovel disintegrates Wall. 19147_ Acquired Deep Structural Scanner. 19148_ LU-1G1's Laser Shovel disintegrates Wall. 19149_ LU-1G1's Laser Shovel disintegrates Earth. 19152_ LU-1G1's Laser Shovel disintegrates Wall. 19156_ Beam penetrates Earth. 19156_ Earth disintegrates. 19156_ Beam penetrates Earth. 19156_ Earth disintegrates. 19168_ Wall disintegrates. 19168_ Beam penetrates Earth. 19168_ Earth disintegrates. 19168_ Beam penetrates U7-PHF(x). 19177_ Beam penetrates Earth. 19177_ Earth disintegrates. 19177_ Wall disintegrates. Map ----- +----------------------------------------------------+ | | | | | ?????????????????????????????????????????????????? | | ?????????????????????????????????????????????????? | | ?????????????????????????????????????????????????? | | #????????????????????????????????????????????????? | | #????????????????????????????????????????????????? | | #????????????????????????????????????????????????? | | #????????????????????????????????????????????????? | | #????????????????????????????????????????????????? | | #????????????????????????????????????????????????? | | #????????????????????????????????????????????????? | | #????????????????????????????????????????????????? | | #????????????????????????????????????????????????? | | #????????????????????????????????????????????????? | | #???????????????????????###################???#### | | #??????????????????????#"""##"""##"" ##"""#??## # | | ???????????????????????#"" ##"" ##"" ## "#### | | ???????????????????????#"" | | ???????????????????????# | | ????????????????###????####################### | | ????????????????#"##########?????????????????##[ # | | ????????????????# "" ;%;;#??????????????????# !# | | ????????????????#"#####; % ########???????????# # | | ???????????????##"# #?#; x # #???????????#[ # | | ???????????????# # #??# @# """ # #???????????# !# | | ???????????????## # #??## # " " # #???????????# [# | | ?????????????### ##### # " " # #???????????# # | | ?????????????#X# #" " " ########"#### [# | | ?????????????# # ######## # ##### ##"""" ""#!!# | | ###??????????# # ???????# # # ##""" ""#!=# | | "#????####### ######???# # # ##"" " #=*# | | X#????# #???# # # ##""" "#!!# | | "#????# #???# ## "#! # | | #????########## ###???##### ########### ##### ]# | | ####???????##### ########### ########### ##### # | | #???????#"""" """"""""""" """"""""""" """"" " | | #???????#" !% = | | #???????#" = ! | | #???????#" | | #???????#" | | #???#####" | | #???#"""" """""""""""""""""""""""""""" | | #???#"""" """""""""""""""""""""""""""" | | #???#"""" ""###### ################"" | | #???#"""" ""# ##????????#"" | | #???#"""" ""# X"#????????#"" | | ###?#"""" ""# "" "" ##????????#"" | | ""#"#"""" ""# "" "" X"#??????###"" | | """"#"""" ""# " " ######### #"" | +----------------------------------------------------+ Best States ------------- Heat Dissipation 39 Energy Generation 15 Energy Capacity 265 Matter Stores 300 Matter Capacity 300 Sight Range 16 Terrain Scan Density 10 Armor Coverage 800 Resistance: TH 10 Evasion (%) 55 Recoil Reduction 1 Offensive Hacking 20 Item Schematics ----------------- Imp. System Restoration Module | -8/Recycling | Hacked Adv. Targeting Computer | -8/Recycling | Hacked Robot Schematics ------------------ None Fabricated ------------ Nothing Repaired ---------- Nothing Studied --------- None Alien Tech Used ----------------- None Achievements -------------- Bob, First Of His Name Frankenstein Longdome?! SUBSUB Survival Of The Most Covered Challenges ------------ None Game ------ Seed SeismicTiamatScreen Manual? 0 Play Time 03:41:01 Cumulative 52.7 hours Start 2026.04.05 @ 17:39:44 End 2026.04.06 @ 17:14:28 Sessions 9 Manual Loads 0 Difficulty Rogue Special Mode None Game No. 58 Rogue 48 Adventurer 9 Explorer 1 Win Type - Total 0 Types 0/0/0/0/0/0/0/0/0/0 Lore% 37 Gallery% 33 Achievement% 26 Wizard Run 0 Options --------- Layout 2 ASCII 0 Keyboard 0 Movement Mouse Keybinds 0 Fullscreen 1 Font 48/Terminus Map View 50x44 Zoom Use 0% Tactical HUD 1 Map Filters NONE Filters NONE Steam 1 RUN: 57bde6fe-e45c-4626-a018-70f9cced77d4